Workbook

Sheet Отчет
A1: Ф.И.О. | B1: Жуков А. А. | C1: З/п
A2: дата создания: | C2: =(цены!C453*0.06)+(цены!I453*0.05) -> 26052.3
A3: период | I3: 9
A4: с: | B4: 2011-11-01
A5: по: | B5: 2011-11-30
A6: Торговая точка | B6: Максидом
A10: Ашан
A11: Окей
A12: Домовой
A13: Медиамаркет
A14: Касторама
A15: Перекресток
A16: Максидом
A17: Оби
A18: Пятерочка
A19: Метро
A20: Лента
A21: Карусель

Sheet цены
C5: Оборот | D5: Розничная цена | E5: Акционная цена | F5: Тип акции | G5: Доп. выкладка | H5: Продажи за период в шт. | I5: Личные продажи (бонусная часть) | J5: Отгрузки за период | K5: Премиальные условия % | L5: Остатки
A7: Ваш магазин | B7: Наименования | C7: Оборот | D7: Розничная цена | E7: Акционная цена
B8: (01) В300 | C8: =SUM(C9:C13) -> 14000
A9: Максидом, Окей, Медиамаркет, Домовой | B9: Водоочиститель многоступенчатый Аквафор В300 модель Аквафор В300 , арт.115 | C9: =H9*D9 -> 1800 | D9: 300 | E9: 229 | H9: 6
A10: Домовой | B10: Водоочиститель многоступенчатый Аквафор В300 модель Аквафор В300, усиленный бактерицидной добавкой , арт.150 | C10: 5000 | D10: 500 | H10: 10
A11: Домовой | B11: Водоочиститель многоступенчатый Аквафор В300 модель Аквафор Универсал , арт.172 | C11: 7200 | D11: 900 | H11: 8
A12: Максидом, Окей, Медиамаркет | B12: Модуль сменный фильтрующий Аквафор В300 , арт.114 | C12: 0
A13: Ашан, Лента, Домовой | B13: Модуль сменный фильтрующий Аквафор В300, усиленный бактерицидной добавкой , арт.156 | C13: 0
B14: (01) Топаз | C14: 0
A15: Максидом, Домовой | B15: Водоочиститель многоступенчатый Аквафор В300 модель Аквафор Топаз , арт.1300 | C15: 0
A16: Максидом, Домовой | B16: Модуль сменный фильтрующий Аквафор Топаз , арт.1301 | C16: 0
B17: (02) Кувшины | C17: =SUM(C18:C49) -> 0
A18: Метро | B18: Кувшин Агат | C18: =H18*D18 -> 0
B19: Кувшин "Арт" | C19: 0
A20: Лента | B20: Водоочиститель Кувшин модель Аквафор Арт (бел) , арт.а795 | C20: 0
B21: Кувшин "Гарри" | C21: 0
A22: Максидом, Лента, Медиамаркет, Домовой | B22: Водоочиститель Кувшин модель Аквафор Гарри (голубой) , арт.а2642 | C22: 0
B23: Кувшин "Гратис" | C23: 0
B24: Водоочиститель Кувшин модель Аквафор TIP | C24: 0
A25: Лента | B25: Водоочиститель Кувшин модель Аквафор Триумф (синий кобальт) , арт.а2852 | C25: 0
A26: Максидом, Ашан, Домовой, Касторама | B26: Водоочиститель Кувшин модель Аквафор Гратис (белый) , арт.а2174 | C26: 0
B27: Кувшин "Кантри" | C27: 0
A28: Карусель, Перекресток(Москва) | B28: Водоочиститель Кувшин модель Аквафор Кантри (зеленый) , арт.а2857 | C28: 0
A29: Окей | B29: Кувшин "Лайн" | C29: 0
A30: Максидом, Медиамаркет, Карусель, Перекресток(Москва), Домовой, ОБИ | B30: Водоочиститель Кувшин модель Аквафор Лайн (бел) , арт.а2474 | C30: 0
B31: Кувшин "Люкс" | C31: 0
A32: Касторама | B32: Водоочиститель Кувшин модель Аквафор Люкс (с индикатором ресурса)(рубиново-красный) , арт.а2441 | C32: 0
B33: Кувшин "Сити" | C33: 0
B34: Водоочиститель Кувшин модель Аквафор Сити (рубиново-красный) , арт.а2483 | C34: 0
B35: Кувшин "Норд" | C35: 0
A36: Лента | B36: Водоочиститель Кувшин модель Аквафор Норд (рубиново-красный) , арт.а2346 | C36: 0
C37: 0
A38: Окей, Ашан, Домовой, Метро, Касторама | B38: Водоочиститель Кувшин модель Аквафор Премиум , арт.а2253 | C38: 0
B39: Кувшин "Престиж" | C39: 0
A40: Окей, Медиамаркет, Домовой, ОБИ, Метро | B40: Водоочиститель Кувшин модель Аквафор Престиж (рубиново-красный) , арт.а2338 | C40: 0
B41: Кувшин "Идеал" | C41: 0
A42: Окей | B42: Водоочиститель Кувшин модель Аквафор Идеал (рубиново-красный) , арт.и963 | C42: 0
B43: Кувшин "Стандарт" | C43: 0
A44: Окей, Пятерочка, Карусель, Перекресток(Москва), Касторама | B44: Водоочиститель Кувшин модель Аквафор Стандарт , арт.а2634 | C44: 0
A45: Ашан | B45: Кувшин Волна | C45: 0
B46: Водоочиститель Кувшин модель Аквафор АРО +3 смен.модуля | C46: 0
A47: Метро | B47: Водоочиститель Кувшин модель Аквафор АРО МЕТРО | C47: 0
B48: Кувшин "Ультра" | C48: 0
A49: Максидом, Окей, Медиамаркет, Домовой, Метро, Касторама | B49: Водоочиститель Кувшин модель Аквафор Ультра, арт.а2635 | C49: 0
B50: (03) См. модули для кувшинов | C50: =SUM(C51:C72) -> 72750
B51: Модуль сменный фильтрующий Аквафор В100-25 (Максфор) | C51: =H51*D51 -> 0 | H51: 15
A52: Метро | B52: Модуль сменный фильтрующий Аквафор В100-25 (Максфор)(комплект)(2 шт.) | C52: 0
B53: Модули В100-1,3,4 | C53: 0
A54: Максидом, Домовой | B54: Модуль сменный фильтрующий Аквафор В100-1 , арт.280 | C54: 12000 | D54: 120 | H54: 100
A55: Окей, Домовой | B55: Модуль сменный фильтрующий Аквафор В100-3 , арт.293 | C55: 0
A56: Домовой | B56: Модуль сменный фильтрующий Аквафор В100-4 , арт.294 | C56: 0
B57: Модули В100-15 | C57: 0
A58: Максидом, Окей, Медиамаркет, Пятерочка, Карусель, Домовой, ОБИ, Касторама | B58: Модуль сменный фильтрующий Аквафор В100-15 (Стандарт) , арт.а451 | C58: 0
B59: Модуль сменный фильтрующий Аквафор В100-15 (Стандарт) (комплект)(3 шт) , арт.а2396 | C59: 22000 | D59: 110 | H59: 200
A60: Ашан | B60: Модуль Волна (100-15) | C60: 0
A61: Метро | B61: Модуль сменный АРО 5+1 МЕТРО | C61: 0
A62: Метро | B62: Модуль сменный АРО (3 штуки) МЕТРО | C62: 0
B63: Модули В100-5,6,7 | C63: 0
A64: Ашан | B64: В 100-5 Ашан, ЛЕРУА | C64: 0
B65: Модуль сменный TIP ( 100-5) | C65: 0
A66: Максидом, Лента, Медиамаркет, Карусель, Перекресток(Москва), Домовой, Касторама | B66: Модуль сменный фильтрующий Аквафор В100-5, усиленный бактерицидной добавкой , арт.1505 | C66: 0
A67: Окей | B67: Модуль сменный фильтрующий Аквафор В100-5, усиленный бактерицидной добавкой (комплект) (3 шт) , арт.а1312 | C67: 38750 | D67: 155 | H67: 250
A68: Максидом, Окей, Лента, Метро, Касторама | B68: Модуль сменный фильтрующий Аквафор В100-5, усиленный бактерицидной добавкой (комплект)(2 шт) , арт.а262 | C68: 0
A69: Максидом, Медиамаркет, Карусель, Перекресток(Москва), Домовой, Касторама | B69: Модуль сменный фильтрующий Аквафор В100-6 , арт.а252 | C69: 0
B70: Модуль сменный фильтрующий Аквафор В100-6 (комплект)(2 шт) , арт.а333 | C70: 0
A71: Максидом, Окей, Лента, Домовой | B71: Модуль сменный фильтрующий Аквафор В100-7 , арт.а2295 | C71: 0
A72: Окей, Домовой | B72: Модуль сменный фильтрующий Аквафор В100-8 , арт.а2409 | C72: 0
B73: (04) Модерн | C73: 0
A74: Максидом, Окей, Лента, Карусель, Домовой, Метро, Касторама | B74: Водоочиститель многоступенчатый Аквафор Модерн (исполнение 1) , арт.246 | C74: 0
A75: Максидом, Окей | B75: Водоочиститель многоступенчатый Аквафор Модерн (исполнение 2) , арт.469 | C75: 0
A76: Ашан | B76: Водоочиститель многоступенчатый Аквафор Модерн (исполнение 4) , арт.а1327 | C76: 0
C77: 0
A78: Максидом, Окей, Лента, Карусель, Домовой, ОБИ, Метро, Касторама | B78: Модуль сменный фильтрующий Аквафор В200 (комплект) , арт.223 | C78: 0
A79: Ашан, ОБИ | B79: Модуль сменный фильтрующий Аквафор B200 (комплект умягчающий) , арт.а259 | C79: 0
B80: (08) Корпусные системы | C80: =SUM(C81:C103) -> 0
B81: В150 Фаворит | C81: =H81*D81 -> 0
A82: Максидом, Медиамаркет, Домовой, ОБИ, Метро | B82: Водоочиститель многоступенчатый Аквафор В150 модель Аквафор В150 Фаворит (исполнение 5) , арт.а592 | C82: 0
C83: 0
A84: Максидом, Домовой | B84: Блок коллекторов Аквафор Кристалл Квадро , арт.а1784 | C84: 0
B85: Водоочиститель Аквафор модель Аквафор Кристалл В (исполнение 3) , арт.а1281 | C85: 0
A86: Медиамаркет, Касторама | B86: Водоочиститель Аквафор модель Аквафор Кристалл Н (исполнение 2) , арт.а860 | C86: 0
A87: Максидом, Медиамаркет, Домовой, ОБИ, Метро, Касторама | B87: Водоочиститель Аквафор модель Аквафор Кристалл , арт.а367 | C87: 0
B88: Водоочиститель Аквафор модель Аквафор Кристалл (кран с индикатором ресурса) | C88: 0
B89: Водоочиститель Аквафор модель Аквафор Кристалл А (ЛеРУА) | C89: 0
B90: Водоочиститель Аквафор модель Аквафор Кристалл А (без крана) | C90: 0
B91: Водоочиститель Аквафор модель Аквафор Кристалл НВ (исполнение 4) , арт.а1648 | C91: 0
C92: 0
A93: Максидом, Домовой, ОБИ | B93: Водоочиститель Аквафор модель Аквафор Кристалл Соло , арт.а1054 | C93: 0
C94: 0
C95: 0
B96: Корпус водоочистителя в сборе Аквафор Трио , арт.а963 | C96: 0
C97: 0
A98: Карусель, Домовой, ОБИ | B98: Водоочиститель Аквафор модель Аквафор Трио умягчающий , арт.а2843 | C98: 0
B99: Водоочиститель Аквафор модель Аквафор Трио Норма умягчающий , арт.а2840 | C99: 0
C100: 0
A101: Максидом, Карусель, Домовой, ОБИ, Касторама | B101: Водоочиститель Аквафор модель Аквафор Трио , арт.а2819 | C101: 0
A102: Максидом | B102: Водоочиститель Аквафор Трио Норма ( с краном исп.3) | C102: 0
A103: Окей, Лента, Домовой, Касторама | B103: Водоочиститель Аквафор Трио Норма , арт.а2822 | C103: 0
A106: Максидом, Окей, Медиамаркет, Домовой, ОБИ, Метро | B106: Комплект модулей сменных фильтрующих К1-03-02-07 , арт.а380 | C106: =H106*D106 -> 0
A107: Максидом, Домовой | B107: Корпус модуля К1-Р , арт.а1616 | C107: 0
A108: Максидом | B108: Модуль сменный фильтрующий К1-07В , арт.а1486 | C108: 0
A109: Максидом, Медиамаркет, Домовой, ОБИ, Касторама | B109: Модуль сменный фильтрующий К1-02 , арт.а950 | C109: 0
A110: Максидом, Медиамаркет, Домовой, ОБИ, Касторама | B110: Модуль сменный фильтрующий К1-03 , арт.а951 | C110: 0
A111: Максидом, Медиамаркет, Домовой, ОБИ, Касторама | B111: Модуль сменный фильтрующий К1-04 , арт.а863 | C111: 0
A112: Максидом, Медиамаркет, Домовой, ОБИ, Касторама | B112: Модуль сменный фильтрующий К1-07 , арт.а952 | C112: 0
A113: Домовой | B113: Элемент фильтрующий ЭФ Г (55/265 – 5 мкм для холодной воды) , арт.м10 | C113: 0
A114: Максидом | B114: Элемент фильтрующий ЭФ Г (55/265 – 20 мкм для холодной воды) , арт.а1590 | C114: 0
B115: См. модули Соло, Дуэт, Трио, Фаворит | C115: 0
A116: Максидом, Домовой | B116: Комплект модулей сменных фильтрующих В510-03-02 , арт.561 | C116: 0
A117: Максидом, Карусель, Домовой, ОБИ, Метро, Касторама | B117: Комплект модулей сменных фильтрующих В510-03-02-07 , арт.565 | C117: 0
A118: Карусель, Домовой, ОБИ, Касторама | B118: Комплект модулей сменных фильтрующих В510-03-04-07 , арт.а790 | C118: 0
A119: Максидом | B119: Комплект модулей сменных фильтрующих В510-04-02 , арт.а711 | C119: 0
A120: Максидом, Окей, Домовой, ОБИ, Метро | B120: Модуль сменный фильтрующий Аквафор В150 , арт.915 | C120: 0
A121: Окей, Домовой, ОБИ | B121: Модуль сменный фильтрующий В510-02 , арт.459 | C121: 0
A122: Домовой, ОБИ | B122: Модуль сменный фильтрующий В510-03 , арт.460 | C122: 0
A123: Домовой, ОБИ | B123: Модуль сменный фильтрующий В510-04 , арт.а669 | C123: 0
A124: Максидом, Окей, Домовой, ОБИ | B124: Модуль сменный фильтрующий В510-07 , арт.464 | C124: 0
B125: ПРЕДФИЛЬТРЫ | C125: =SUM(C126:C129) -> 0
A126: Максидом, Домовой | B126: Корпус предфильтра Аквафор для холодной воды , арт.а2775 | C126: =H126*D126 -> 0
B127: Корпус водоочистителя Аквабосс-1-01 для холодной воды , арт.1014 | C127: =H127*D127 -> 0
A128: Максидом, Домовой, Касторама | B128: Корпус водоочистителя Аквабосс-1-02 для горячей воды , арт.1015 | C128: =H128*D128 -> 0
A129: Максидом, Домовой, Касторама | B129: Корпус предфильтра Аквафор для холодной воды (прозрачный) , арт.а2776 | C129: =H129*D129 -> 0
A132: Касторама | B132: Элемент фильтрующий ЭФ Г (63/250 – 10 мкм для горячей воды) , арт.м1 | C132: =H132*D132 -> 0
B133: Элемент фильтрующий ЭФ Г (63/250 – 20 мкм для горячей воды) , арт.м2 | C133: 0
A134: Максидом, Домовой, ОБИ | B134: Элемент фильтрующий ЭФ Г (63/250 – 20 мкм для холодной воды) , арт.м3 | C134: 0
A135: Максидом, Домовой, ОБИ | B135: Элемент фильтрующий ЭФ Г (63/250 – 5 мкм для горячей воды) , арт.м4 | C135: 0
A136: Максидом, Окей, Медиамаркет, Домовой, ОБИ, Касторама | B136: Элемент фильтрующий ЭФ Г (63/250 – 5 мкм для холодной воды) , арт.м5 | C136: 0
B137: (12) Краны | C137: 0
A138: Максидом, Домовой | B138: Кран с керамической парой , арт.а288 | C138: 0
A139: Максидом | B139: Кран с керамической парой (исп.3) , арт.а30 | C139: 0
B140: (13) Втулки
A141: Максидом, Домовой, ОБИ | B141: Втулка переходная для подключения в/о "Аквафор Топаз", "Аквафор Модерн" (исп.2) к гладкому крану , арт.1598 | C141: =H141*D141 -> 0
A142: ОБИ | B142: Втулка переходная ВП3 , арт.485 | C142: 0
A143: ОБИ | B143: Втулка переходная ВП4 , арт.487 | C143: 0
A144: Домовой | B144: Втулка переходная ВП5 , арт.489 | C144: 0
A145: Домовой, ОБИ | B145: Втулка переходная для подключения водоочистителей Аквафор к гладкому крану (без резьбы) , арт.490 | C145: 0
A146: Максидом | B146: Переключатель П21 , арт.1099 | C146: 0
A147: Максидом | B147: Переходник для регенерации модуля , арт.а849 | C147: 0
C148: 0
A149: Максидом, Домовой, ОБИ, Касторама | B149: Корпус водоочистителя Аквафор Викинг , арт.а1041 | C149: 0
A150: Максидом, Домовой | B150: Корпус водоочистителя Аквафор Викинг Миди , арт.а1125 | C150: 0
A151: Максидом, Домовой | B151: Корпус водоочистителя Аквафор Викинг Мини , арт.а1129 | C151: 0
C152: 0
A153: Максидом, Касторама | B153: Корпус водоочистителя ВВ 10” (1” NPT) с комплектом деталей , арт.б1 | C153: 0
A154: Максидом, Касторама | B154: Корпус водоочистителя ВВ 20” (1” NPT) с комплектом деталей , арт.б2 | C154: 0
C155: 0
C156: 0
B157: Водоочиститель "Аквафор-ОСМО" (100) исп.4 | C157: 0
A158: ОБИ | B158: Водоочиститель Аквафор-ОСМО исполнение Аквафор-ОСМО-100-5-А , арт.б29 | C158: 0
B159: Водоочиститель Аквафор-ОСМО исполнение Аквафор-ОСМО-100-6-А , арт.б30 | C159: 0
B160: Водоочиститель Аквафор-ОСМО-К исполнение Аквафор-ОСМО-К-100-4-А , арт.а1508 | C160: 0
B161: Водоочиститель Аквафор-ОСМО-К исполнение Аквафор-ОСМО-К-100-5-А , арт.а1499 | C161: 0
C162: 0
B163: Водоочиститель "Аквафор-ОСМО 100 ПН" исп.4 | C163: 0
B164: Водоочиститель Аквафор-ОСМО исполнение Аквафор-ОСМО-100-5-ПН-А , арт.б32 | C164: 0
A165: ОБИ | B165: Водоочиститель Аквафор-ОСМО исполнение Аквафор-ОСМО-100-6-ПН-А , арт.б33 | C165: 0
A167: Касторама | B167: Водоочиститель Аквафор-ОСМО исполнение Аквафор-ОСМО-050-5-А , арт.б26 | C167: =H167*D167 -> 0
B168: Водоочиститель Аквафор-ОСМО исполнение Аквафор-ОСМО-050-6-А , арт.б27 | C168: =H168*D168 -> 0
B169: Водоочиститель Аквафор-ОСМО-М исполнение Аквафор-ОСМО-М-050-4-Б , арт.и267 | C169: =H169*D169 -> 0
A170: Касторама | B170: Водоочиститель Аквафор-ОСМО-К исполнение Аквафор-ОСМО-К-050-4-А , арт.а1505 | C170: =H170*D170 -> 0
A171: Медиамаркет | B171: Водоочиститель Аквафор-ОСМО-К исполнение Аквафор-ОСМО-К-050-5-А , арт.а1511 | C171: =H171*D171 -> 0
B174: Фильтр диспенсер аквафор Кристалл | C174: =H174*D174 -> 0
B175: Комплект для повышения давления , арт.б34 | C175: 0
A176: ОБИ | B176: Сменный элемент TFC-100 RO Ultra Tec USA , арт.а298 | C176: 0
A177: Максидом | B177: Модуль сменный мембранный Аквафор-ОСМО-100-К , арт.а1487 | C177: 0
A178: ОБИ | B178: Сменный элемент TFC-50 RO Ultra Tec USA | C178: 0
A179: Касторама | B179: Элемент сменный мембранного типа для систем очистки воды методом обратного осмоса модели ULP 1812-50 , арт.а1798 | C179: 0
A180: Медиамаркет, Касторама | B180: Модуль сменный мембранный Аквафор-ОСМО-50-К , арт.а2429 | C180: 0
B181: Сменные BB | C181: =SUM(C182:C183) -> 0
A182: Максидом, Касторама | B182: Модуль сменный фильтрующий В 510-12 , арт.1577 | C182: =H182*D182 -> 0
A183: Максидом, Касторама | B183: Модуль сменный фильтрующий В 520-12 , арт.1576 | C183: =H183*D183 -> 0
B184: Модули Викинг | C184: =SUM(C185:C192) -> 0
A185: Максидом, Домовой | B185: Модуль сменный фильтрующий АКВАФОР В150 ПЛЮС , арт.1727 | C185: =H185*D185 -> 0
A186: Максидом, Домовой, ОБИ, Касторама | B186: Модуль сменный фильтрующий В520-13 , арт.1774 | C186: 0
A187: Максидом, Домовой, ОБИ, Касторама | B187: Модуль сменный фильтрующий В520-14 , арт.а206 | C187: 0
A188: Максидом, Домовой | B188: Модуль сменный фильтрующий Аквафор В150 Миди , арт.а1308 | C188: 0
A189: Максидом, Д | C189: 0
A190: Максидом, Домовой | B190: Модуль сменный фильтрующий В505-14 , арт.а1238 | C190: 0
A191: Максидом, Домовой | B191: Модуль сменный фильтрующий В515-13 , арт.а1239 | C191: 0
A192: Максидом, Домовой | B192: Модуль сменный фильтрующий В515-14 , арт.а1240 | C192: 0
C193: 0
C194: 0
A195: Касторама | B195: Элемент фильтрующий ЭФ Г (112/250 – 10 мкм для холодной воды) , арт.м6 | C195: 0
B196: Элемент фильтрующий ЭФ Г (112/250 – 10 мкм для горячей воды) | C196: 0
A197: Максидом | B197: Элемент фильтрующий ЭФ Г (112/250 – 20 мкм для холодной воды) , арт.м7 | C197: 0
A198: Максидом | B198: Элемент фильтрующий ЭФ Г (112/250 – 5 мкм для холодной воды) , арт.м8 | C198: 0
A199: Касторама | B199: Элемент фильтрующий ЭФ Г (112/508 – 10 мкм для холодной воды) , арт.м9 | C199: 0
B200: Элемент фильтрующий ЭФ Г (112/508 – 10 мкм для горячей воды) | C200: 0
A201: Максидом | B201: Элемент фильтрующий ЭФ Г (112/508 – 20 мкм для холодной воды) , арт.м10 | C201: 0
A202: Максидом | B202: Элемент фильтрующий ЭФ Г (112/508 – 5 мкм для холодной воды) , арт.м11 | C202: 0
B203: См. модули для корпусов Викинг | C203: 0
A204: Максидом | B204: Модуль сменный фильтрующий В520-ПХ20 , арт.а1756 | C204: 0
A205: Максидом | B205: Модуль сменный фильтрующий В520-ПХ5 , арт.а1752 | C205: 0
A206: ОБИ | B206: Индикатор ресурса Аквафор , арт.1738 | C206: 0
B207: Кран регулировочный ГП | C207: 0
B208: Кран с керамической парой | C208: 0
B209: Трубка РЕ 1/4 Фирмы JG | C209: 0
B210: WB 900 | C210: 0
A211: Максидом | B211: WB 700 | C211: 0
A212: Максидом | B212: Фильтр Honeywell FF06-1 AA х/в 100мкм | C212: 0
... 245 more rows
